Cogmind - Beta 15 @@@ ROGUE MODE // 2025.05.20 @ 02:04:55 // Winter2019/RPGLIKE Player: Toaster Result: Self-destructed Performance ------------- Evolutions (0) 0 Regions Visited (3) 600 Robots Destroyed (41) 205 Value Destroyed (1036) 1036 Prototype IDs (6) 120 Alien Tech Used (0) 0 Bonus (46) 46 TOTAL SCORE: 2007 Bonus ------- High Alert Combat Kills 11 Follower Combat Kills 35 Cogmind --------- Core Integrity 556/600 Matter 300/300 Energy 314/315 System Corruption 0% Temperature Cool (3) Movement Flying (30) Location -8/Recycling Parts ------- > --- POWER (1) -------- Improved Ion Engine > --- PROPULSION (3) --- Flight Unit VTOL Module VTOL Module > --- UTILITY (2) ------ Reaction Control System Tractor Beam > --- WEAPON (3) ------- Riot Gun High-powered Shotgun Flak Cannon > --- INVENTORY (1) ---- (None) Peak State ------------ > --- POWER ------------ Improved Ion Engine > --- PROPULSION ------- Flight Unit VTOL Module VTOL Module > --- UTILITY ---------- Reaction Control System Tractor Beam > --- WEAPON ----------- Riot Gun High-powered Shotgun Flak Cannon > --- INVENTORY -------- (None) [Rating: 20] Favorites ----------- Power Ion Engine Engine Ion Engine Propulsion Aluminum Leg Leg Aluminum Leg Hover Unit Hover Unit Flight Unit Flight Unit Utility Utility Shielding Device Heat Sink Hackware Hacking Suite Protection Utility Shielding Weapon EM Pulse Gun Energy Gun EM Pulse Gun Energy Cannon Subdweller Beam Cannon Ballistic Gun High-powered Shotgun Ballistic Cannon Light Cannon Build | -11 -10 -10 -8 ------- Run | Yrd Mat Sub Rec Slots Evolved 5 | 2 . . 3 Power . | . . . . Propulsion 2 | 1 . . 1 Utility 1 | . . . 1 Weapon 2 | 1 . . 1 Parts Attached 29 | 5 8 4 12 Power 5 | 1 2 1 1 Engine 5 | 1 2 1 1 Core . | . . . . Reactor . | . . . . Propulsion 9 | 2 3 . 4 Treads . | . . . . Leg 2 | 2 . . . Wheel . | . . . . Hover 1 | . 1 . . Flight 6 | . 2 . 4 Utility 7 | . 2 . 5 Device 4 | . 1 . 3 Storage . | . . . . Processor . | . . . . Hackware 2 | . . . 2 Protection 1 | . 1 . . Artifact . | . . . . Weapon 8 | 2 1 3 2 Energy Gun 2 | 1 . 1 . Energy Cannon 1 | . . 1 . Ballistic Gun 3 | 1 . 1 1 Ballistic Cannon 2 | . 1 . 1 Launcher . | . . . . Special Weapon . | . . . . Impact Weapon . | . . . . Slashing Weapon . | . . . . Piercing Weapon . | . . . . Special Melee Weapon . | . . . . Unidentified Prototypes . | . . . . Parts Lost 3 | . 1 1 1 Power 1 | . 1 . . Propulsion 2 | . . 1 1 Utility . | . . . . Weapon . | . . . . Highest Loss Streak 1 | . 1 1 1 To Critical Strikes . | . . . . Average Backups . | . . 1 . Power . | . . . . Propulsion . | . . . . Utility . | . . . . Weapon . | . . 1 . Tool/Special . | . . . . Unused Backups 2 | . . 1 1 Power . | . . . . Propulsion . | . . . . Utility . | . . . . Weapon 2 | . . 1 1 Tool/Special . | . . . . Average Slot Usage (%) 93 | . 92 95 94 Engine 14 | . 15 16 13 Leg 14 | . 28 . . Flight 14 | . . 28 29 Device 6 | . 5 . 12 Hackware 1 | . . . 6 Protection 6 | . 5 16 1 Energy Gun 14 | . 16 13 13 Energy Cannon 5 | . . 13 8 Ballistic Gun 1 | . . 2 4 Ballistic Cannon 9 | . 15 2 4 Peak Build Rating 20 | 5 6 10 20 Average Rating 8 | 3 5 8 15 On Entrance 4 | . 5 6 8 Naked Turns . | . . . . Heaviest Build 21 | 9 11 17 21 Greatest Support 25 | 25 25 18 22 Greatest Overweight (x) 1 | . 1 1 1 Average Overweight (x) . | . . . . Largest Inventory Capacity 1 | 1 1 1 1 Average Capacity 1 | 1 1 1 1 Most Carried 1 | . 1 1 1 Average Carried . | . . . . Final Capacity 1 | 1 1 1 1 Final Carried 1 | . 1 1 . Class Distribution -------------------- 80% | Mutant 6% | Hacker-Mutant 4% | Commander-Sprinter 3% | Sprinter 3% | Commander-Gunner Dominant Class ---------------- Mutant | -10/Materials Mutant | -10/Subcaves Mutant | -8/Recycling Resources | -11 -10 -10 -8 ----------- Run | Yrd Mat Sub Rec Matter Collected 806 | 199 367 90 150 Remotely 100 | . . . 100 Salvage Created 1242 | . 708 126 408 Parts 86 | . 44 26 16 Haulers Intercepted 1 | . 1 . . Recyclers Shooed 1 | . 1 . . Parts Field Recycled . | . . . . Retrieved Matter . | . . . . Parts Self-Destructed 12 | . . 12 . Prevented 1 | . . 1 . Kills | -11 -10 -10 -8 ------- Run | Yrd Mat Sub Rec Combat Hostiles Destroyed 30 | . 17 9 4 Guns 12 | . 6 4 2 Cannons 17 | . 10 5 2 AOE 1 | . 1 . . Classes Destroyed 11 | . 6 3 2 Hauler 1 | . 1 . . Recycler 4 | . 3 . 1 Mechanic 1 | . 1 . . Turret 2 | . . 2 . Watcher 3 | . 3 . . Swarmer 10 | . 5 5 . Grunt 13 | . 12 1 . Sentry 3 | . . . 3 Demolisher 1 | . . . 1 Cobbler 1 | . . 1 . Subdweller 3 | . . 3 . Best Kill Streak 6 | . 6 4 1 Combat Bots Only 4 | . 4 4 1 Max Kills in Single Turn 1 | . 1 1 1 Gunslinging . | . . . . Exploded 1 | . 1 . . Melee . | . . . . Uniques/NPCs Destroyed . | . . . . Combat | -11 -10 -10 -8 -------- Run | Yrd Mat Sub Rec Hostile Shots Fired 209 | . 83 117 9 Missed 95 | . 29 63 3 Hits 114 | . 54 54 6 Projectile 114 | . 54 54 6 AOE 3 | . . . 3 Critical Strikes 1 | . . . 1 Damage Taken 1437 | . 690 515 232 Core 1163 | . 549 427 187 Absorbed by Shields . | . . . . Redirected to Core 841 | . 404 273 164 Core Remaining (%) 100 | 100 . . . Volleys Fired 125 | . 59 53 13 Largest 3 | . 2 2 3 Hottest 130 | . 70 130 130 Shots Fired 232 | . 118 90 24 Gun 114 | . 59 40 15 Cannon 118 | . 59 50 9 Launcher . | . . . . Special . | . . . . Kinetic 73 | . 59 10 4 Thermal 50 | . . 43 7 Explosive . | . . . . Electromagnetic 109 | . 59 37 13 Robot Hit Streak 9 | . 8 7 9 Robot Miss Streak 5 | . 5 5 4 Penetration Max . | . . . . Secondary Targets . | . . . . Shots Hit Robots 127 | . 61 48 18 Core Hits 67 | . 35 19 13 Critical Kills . | . . . . Critical Parts Destroyed . | . . . . Critical Strikes 2 | . 2 . . Corrupt 2 | . 2 . . Melee Attacks . | . . . . Impact . | . . . . Slashing . | . . . . Piercing . | . . . . Sneak Attacks . | . . . . Combat Hostiles . | . . . . Follow-up Attacks . | . . . . Damage Inflicted 2658 | . 1261 964 433 Guns 978 | . 432 294 252 Cannons 1378 | . 618 670 90 Explosions 271 | . 180 . 91 Melee . | . . . . Ramming 31 | . 31 . . Kinetic 702 | . 618 38 46 Thermal 981 | . 180 632 169 Explosive . | . . . . Electromagnetic 944 | . 432 294 218 Impact . | . . . . Slashing . | . . . . Piercing . | . . . . Highest Corruption . | . . . . Average Corruption . | . . . . Corruption Purged . | . . . . Corruption Blocked . | . . . . Overload Shots . | . . . . Overflow Damage 45 | . 19 24 2 Projectiles 24 | . . 24 . Explosions 21 | . 19 . 2 Melee . | . . . . Knockbacks 7 | . 7 . . Impact . | . . . . Kinetic 7 | . 7 . . Secondary . | . . . . Self-Inflicted Damage 56 | . . . 56 Shots 1 | . . . 1 Rammed . | . . . . Targets Rammed 10 | . 10 . . Kicked 10 | . 10 . . Crushed . | . . . . Highest Temperature 261 | . 108 136 261 Average Temperature 47 | . 39 36 75 Received Heat Transfer 483 | . 273 165 45 Siege Activations . | . . . . Martial Activations . | . . . . Shielding Activations . | . . . . Robots Disrupted 1 | . . 1 . Combat Hostiles 1 | . . 1 . Robots Corrupted . | . . . . Combat Hostiles . | . . . . Parts Fried 2 | . 1 1 . Impact Corruptions . | . . . . Robots Melted . | . . . . Combat Hostiles . | . . . . Parts Melted 1 | . . 1 . Heat Transferred 1362 | . 300 851 211 Parts Sabotaged . | . . . . Parts Stolen . | . . . . Parts Stripped . | . . . . Power Chain Reactions 4 | . 2 . 2 Alert | -11 -10 -10 -8 ------- Run | Yrd Mat Sub Rec Maximum Alert Level 2 | . . . 2 Low Security (%) 65 | 100 100 . . Level 1 32 | . . . 93 Level 2 2 | . . . 6 Level 3 . | . . . . Level 4 . | . . . . Level 5 . | . . . . High Security . | . . . . Max Security . | . . . . Peak Influence 410 | . 152 . 410 Initial 401 | . . . 401 Average 134 | . 28 . 335 Influence Increases 1790 | . 511 1010 269 Destroy 0b10 Robot/C 600 | . 340 160 100 Destroy 0b10 Robot/NC 60 | . 40 . 20 Destroy Leader 78 | . 68 10 . Allied During Kill 8 | . . . 8 Successful Hack 29 | . 7 . 22 Select Force Hacks 120 | . 30 . 90 Destroy Structure 25 | . 11 . 14 Lose Combat Pursuer 870 | . 15 840 15 Influence Decreases 1552 | . 369 315 868 Entered New Map 505 | . . 69 436 Time Decay 961 | . 303 236 422 Lost Part 30 | . 10 10 10 Purge Threat 56 | . 56 . . Squads Dispatched 3 | . 3 . . Investigation 2 | . 2 . . Extermination . | . . . . Reinforcement 1 | . 1 . . Assault . | . . . . Garrison . | . . . . Intercept . | . . . . Searches Triggered . | . . . . Construction Impeded . | . . . . Haulers Reinforced . | . . . . Active Scanning Responses . | . . . . Cargo Convoy Interrupts . | . . . . Stealth | -11 -10 -10 -8 --------- Run | Yrd Mat Sub Rec Distress Signals 1 | . 1 . . Communications Jammed . | . . . . Distress Signals . | . . . . Times Spotted 84 | . 24 55 5 Peak Tracking Total 6 | . 5 6 1 Tactical Retreats 11 | . 1 9 1 Traps | -11 -10 -10 -8 ------- Run | Yrd Mat Sub Rec Traps Triggered 2 | . 2 . . Indirectly . | . . . . Trap Hack Attempts . | . . . . Triggered . | . . . . Disarmed . | . . . . Reprogrammed . | . . . . Reused . | . . . . Traps Extracted . | . . . . Installed . | . . . . Triggered . | . . . . Machines | -11 -10 -10 -8 ---------- Run | Yrd Mat Sub Rec Machines Disabled 2 | . . 2 . Max in Single Turn 2 | . . 2 . Machines Repaired . | . . . . Machines Dismantled . | . . . . Machines Sabotaged . | . . . . Overloaded Fab Kills . | . . . . Hacking | -11 -10 -10 -8 --------- Run | Yrd Mat Sub Rec Machines Accessed 15 | . 6 . 9 Terminals 11 | . 5 . 6 Fabricators . | . . . . Repair Stations . | . . . . Recycling Units 4 | . 1 . 3 Scanalyzers . | . . . . Garrison Access . | . . . . Total Hacks 41 | . 13 . 28 Successful 26 | . 11 . 15 Failed 15 | . 2 . 13 Catastrophic . | . . . . Database Lockouts . | . . . . Manual 24 | . 6 . 18 Terminals 32 | . 11 . 21 Fabricators . | . . . . Repair Stations . | . . . . Recycling Units 9 | . 2 . 7 Scanalyzers . | . . . . Garrison Access . | . . . . Terminal Hacks 8 | . 4 . 4 Part Schematic 2 | . . . 2 Prototype ID Bank 3 | . 2 . 1 Fabricator Index 1 | . . . 1 Unreport Threat 1 | . 1 . . Locate Traps 1 | . 1 . . Fabricator Hacks . | . . . . Repair Station Hacks . | . . . . Recycling Unit Hacks 5 | . 1 . 4 Report Inventory 4 | . 1 . 3 Retrieve Components 1 | . . . 1 Scanalyzer . | . . . . Garrison Access Hacks . | . . . . Unauthorized Hacks 13 | . 6 . 7 Terminals 9 | . 5 . 4 Botnet 9 | . 5 . 4 Fabricators . | . . . . Repair Stations . | . . . . Recycling Units 4 | . 1 . 3 Tunnel 4 | . 1 . 3 Scanalyzers . | . . . . Garrison Access . | . . . . Data Cores Recovered . | . . . . Used . | . . . . Hacking Detections 12 | . 4 . 8 Full Trace Events 4 | . 1 . 3 Feedback Events . | . . . . Feedback Blocked . | . . . . Robot Schematics Acquired . | . . . . Robots Built . | . . . . Authchips . | . . . . Time . | . . . . Total Robot Build Rating . | . . . . Part Schematics Acquired 2 | . . . 2 Parts Built . | . . . . Authchips . | . . . . Time . | . . . . Total Part Build Rating . | . . . . Parts Repaired . | . . . . Time . | . . . . Parts Recycled . | . . . . Recycled Matter . | . . . . Retrieved Matter . | . . . . Retrieved Components 3 | . . . 3 Parts Scanalyzed . | . . . . Part Schematics Acquired . | . . . . Parts Damaged . | . . . . Bothacking | -11 -10 -10 -8 ------------ Run | Yrd Mat Sub Rec Used RIF Installer . | . . . . Robots Hacked . | . . . . Non-combat . | . . . . Combat . | . . . . Robot Hacks Applied . | . . . . Relay Couplers Released . | . . . . Fabnet Peak Effective % . | . . . . Robots Rewired 5 | . . . 5 Allies Hacked . | . . . . Hacks Repelled . | . . . . Allies | -11 -10 -10 -8 -------- Run | Yrd Mat Sub Rec Total Allies 5 | . . . 5 Largest Group 5 | . . . 5 Highest-Rated Group 90 | . . . 90 Highest-Rated Ally 23 | . . . 23 Total Orders 3 | . . . 3 STAY 2 | . . . 2 FOLLOW 1 | . . . 1 Ally Attacks 3 | . . . 3 Total Damage 87 | . . . 87 Kills 1 | . . . 1 Allies Corrupted . | . . . . Allies Melted . | . . . . Intel | -11 -10 -10 -8 ------- Run | Yrd Mat Sub Rec Active Infowar (turns) . | . . . . Robot Analysis Total . | . . . . Derelict Logs Recovered 2 | . . 2 . Drone Launches . | . . . . Drone Recoveries . | . . . . Exploration | -11 -10 -10 -8 ------------- Run | Yrd Mat Sub Rec Turns Passed 3697 | 60 1844 771 1022 Spaces Moved 3986 | 57 1254 1108 1567 Core 483 | 22 4 212 245 Treads . | . . . . Legs 995 | 35 960 . . Wheels . | . . . . Hover 244 | . 244 . . Flight 2264 | . 46 896 1322 Fastest Speed 30 | 50 37 37 30 Average Speed 66 | 92 105 49 46 Slowest Speed 120 | 120 120 120 114 Overloaded Moves . | . . . . Propulsion Burnouts . | . . . . Robots Hopped 32 | . . . 32 Potential Cave-ins . | . . . . Cave-ins Triggered . | . . . . Exploration Rate (%) 63 | 3 92 65 94 Regions Visited 3 Branch Regions 2 Pre-discovered Areas 4 | . 1 . 3 Known Exits Taken . | . . . . Unknown Exits Taken 3 | 1 1 1 . Scrap Searched 11 | . . 11 . Spaces Dug 2 | . . 2 . Terrain Destroyed 28 | . 9 7 12 Melee . | . . . . Projectile 10 | . . 7 3 AOE 18 | . 9 . 9 Terrain Rammed . | . . . . Walls Destroyed . | . . . . Machines Disabled . | . . . . Actions | -11 -10 -10 -8 --------- Run | Yrd Mat Sub Rec Total 4771 | 61 1655 1243 1812 Wait 532 | . 305 38 189 Move 3924 | 56 1253 1107 1508 Hop 27 | . . . 27 Pick Up 3 | . 1 1 1 Fast Attach 29 | 5 8 5 11 Attach 2 | . . . 2 Detach 5 | . 1 . 4 Swap . | . . . . Drop 18 | . 6 6 6 Fire 125 | . 59 53 13 Melee . | . . . . Ram . | . . . . Kick 10 | . 10 . . Crush . | . . . . Escape Stasis . | . . . . Rewire 39 | . . . 39 Trap . | . . . . Miscellaneous 57 | . 12 33 12 Route ------- -11/Scrapyard -10/Materials (discovered 6 exits: [*Mat x3] / [*Min x2] / [*Sub]) -10/Subcaves (discovered 2 exits: [*Mat] / *Rec) -8/Recycling (discovered 1 exit: [*Fac]) History --------- Turn | Location | Event 1 | -11/Scrapyard | Upgraded with Propulsion slot (x1) 1 | -11/Scrapyard | Upgraded with Weapon slot (x1) 8 | -11/Scrapyard | Discovered new exit (range 16) 61 | -11/Scrapyard | Entered Materials 314 | -10/Materials | Build established: Mutant 468 | -10/Materials | Discovered new exit (range 5) 661 | -10/Materials | Derelicts attacked the area 687 | -10/Materials | Discovered new exit (range 12) 1072 | -10/Materials | Discovered new exit (range 5) 1207 | -10/Materials | Discovered new exit (range 17) 1301 | -10/Materials | Discovered new exit (range 17) 1545 | -10/Materials | Discovered new exit (range 9) 1715 | -10/Materials | Reached level 2 1768 | -10/Materials | Core integrity fell below 50% 1905 | -10/Materials | Entered Subcaves 1906 | -10/Subcaves | Approached by a straggling Scientist 1907 | -10/Subcaves | Reached level 3 1922 | -10/Subcaves | Learned Materials stockpile data 2083 | -10/Subcaves | Ambushed by Subdwellers from Twisted Machinery 2088 | -10/Subcaves | Discovered new exit (range 16) 2114 | -10/Subcaves | Shifting Twisted Machinery released Riot Gun 2116 | -10/Subcaves | Shifting Twisted Machinery released Shrapnel Trap 2275 | -10/Subcaves | Learned Materials garrison access intel 2414 | -10/Subcaves | Discovered new exit (range 11) 2676 | -10/Subcaves | Entered Recycling 2678 | -8/Recycling | Reached level 4 2847 | -8/Recycling | Upgraded with Utility slot (x1) 2920 | -8/Recycling | Scanned before Scraplab entrance 2969 | -8/Recycling | Discovered new exit (range 16) 3234 | -8/Recycling | Upgraded with Propulsion slot (x1) 3253 | -8/Recycling | Upgraded with Weapon slot (x1) 3698 | -8/Recycling | Self-destructed Last Messages --------------- 03475_ I-25 Savior rewired. 03512_ Chain reaction triggered in Lgt. Nuclear Core. 03512_ G-47 Trooper destroyed. 03512_ VTOL Module destroyed. 03512_ Destroyed VTOL Module. 03519_ Used Protomatter to restore core integrity (+120, depleted) 03525_ Destroyed Aluminum Leg. 03525_ G-47 Trooper destroyed. 03529_ R-06 Scavenger collects Aluminum Leg. 03535_ U-05 Engineer builds a Wall. 03537_ G-47 Trooper destroyed. 03539_ U-05 Engineer builds a Door. 03543_ U-05 Engineer lays Concrete. 03546_ U-05 Engineer builds a Wall. 03550_ U-05 Engineer lays Concrete. 03592_ Acquired VTOL Module. 03595_ Dropped VTOL Module. 03596_ Acquired VTOL Module. 03621_ Acquired 30 matter. 03675_ The wall retracts into the floor. Map ----- +----------------------------------------------------+ | | | | | | | | | | | | | | | | | | | | | | | | | | | | | | | | | ?????????????????????????????????????????????????? | | ?????????????????????????????????????????????????? | | ?????????????????????????????????????????????????? | | ?????????????????????????##??????????????????????? | | ????????????????????????# ??????????????????????? | | ????????????????????????j #??????????????????????? | | ????????????????????????# #??????????????????????? | | ????????????????????????# #??????????????????????? | | ????????????????????????#h#??????????????????????? | | ?????????????????????####@####???????????????????? | | ?????????????????????# Yh #???????????????????? | | ?????????????????????# b #???????????????????? | | ?????????????????????# #???????????????????? | | ?????????????????????# i#???????????????????? | | ?????????????????????####+####???##??????????????? | | ????????????????????????# #??????####????????????# | | ????????????????????????# #########%############## | | ????????????????????????# | | ????????????????????????################## ####### | | ????????????????????????????# # # | | ????????????????????????????# # # | | ????????????????????????????# # # ! | | ????????????????????????????# # # | | ????????????????????????????# # + * = | | ????????????????????????????# # # | | ????????????????????????????# # # | | ????????????????????????????# # # ! | | ???????????????????????????## # ####+## | | ???????????????????????????# # ### # | | ???????????????????????????## + | | ????????????????????????????# # ### # | | ????????????????????????????####+######### #?##### | | ??????????????????????????????# #?????? | | ?????????????????????########## ##########?????? | +----------------------------------------------------+ Best States ------------- Heat Dissipation 35 Energy Generation 15 Energy Capacity 315 Matter Stores 300 Matter Capacity 300 Sight Range 17 Robot Scan Range 4 Terrain Scan Density 10 Utility Shielding 33 Evasion (%) 72 Offensive Hacking 10 Defensive Hacking 10 Item Schematics ----------------- Axe | -8/Recycling | Hacked Power Maul | -8/Recycling | Hacked Robot Schematics ------------------ None Fabricated ------------ Nothing Repaired ---------- Nothing Alien Tech Used ----------------- None Achievements -------------- None Challenges ------------ None RPGLIKE | -11 -10 -10 -8 --------- Run | Yrd Mat Sub Rec Levels Raised 3 | . 1 1 1 XP Earned 8972 | 3000 2150 1850 1972 XP Spent 7475 | 1350 100 800 5225 Upgrades 17 | 4 1 2 10 Propulsion Slot 2 | 1 . . 1 Utility Slot 1 | . . . 1 Weapon Slot 2 | 1 . . 1 Energy Storage 1 | . . 1 . Mass Support 2 | 1 . 1 . Inventory Capacity 1 | 1 . . . Sight Range 1 | . 1 . . Sensor Range 2 | . . . 2 Ranged Accuracy 5 | . . . 5 Protomatter Created 584 | . 253 240 91 Integrity Restored 1212 | . 236 703 273 Core 1119 | . 227 628 264 Parts 93 | . 9 75 9 Protomatter Decayed 182 | . 67 77 38 Game ------ Seed UltimatePhasingBlaster Manual? 0 Play Time 00:47:57 Cumulative 108.6 hours Start 2025.05.20 @ 01:11:24 End 2025.05.20 @ 02:04:55 Sessions 1 Manual Loads 0 Difficulty Rogue Special Mode Winter2019/RPGLIKE Game No. 49 Rogue 45 Adventurer 4 Explorer 0 Win Type - Total 1 Types 1/0/0/0/0/0/0/0/0/0 Lore% 54 Gallery% 44 Achievement% 49 Wizard Run 0 Options --------- Layout 0 ASCII 0 Keyboard 0 Movement Arrows Keybinds 0 Fullscreen 2 Font 32/SmallcapsGlow Map View 88x55 Zoom Use 0% Tactical HUD 1 Map Filters NONE Filters NONE Steam 1 RUN: 3ef20e82-3501-43ce-84e1-57ac2face5e3